Cogmind - Beta 11 X8 *** ADVENTURER MODE // 2021.11.14 @ 13:36:16 Player: Rogirek Result: Destroyed by L-61 Swordsman with Power Sword Performance ------------- Evolutions (8) 4000 Regions Visited (23) 4600 Robots Destroyed (219) 1095 Value Destroyed (14626) 14626 Prototype IDs (33) 660 Alien Tech Used (0) 0 Bonus (7955) 7955 TOTAL SCORE: 32936 Bonus ------- High Alert Combat Kills 626 Follower Combat Kills 1920 Entered Garrisons 1600 Used RIF Installer 4000 Aligned with FarCom 300 Friendly Fire -491 Cogmind --------- Core Integrity 0/1450 Matter 290/300 Energy 627/690 System Corruption 2% Temperature Hot (201) Movement Walking (190) Ox1 Location -2/Garrison Parts ------- > --- POWER (1) -------- Particle Reactor > --- PROPULSION (4) --- Myomer Leg Myomer Leg Myomer Leg Myomer Leg > --- UTILITY (14) ----- Advanced Heat Sink Huge Storage Unit Energy Well Advanced Target Analyzer Heavy Armor Plating Heavy Armor Plating Relay Coupler [NC] (44) Relay Coupler [Grunt] (47) Relay Coupler [Brawler] (42) Relay Coupler [Duelist] (42) Relay Coupler [Sentry] (13) Relay Coupler [Hunter] (18) > --- WEAPON (4) ------- Quantum Rifle Quantum Rifle Dual-blade Saw > --- INVENTORY (25) --- Particle Reactor Particle Reactor Light Particle Reactor Light Particle Reactor Light Quantum Reactor Medium Treads Myomer Leg Advanced Heat Sink Advanced Target Analyzer Medium Reflective Plating Medium Insulated Plating Relay Coupler [Swarmer] (44) Relay Coupler [Grunt] (32) Relay Coupler [Hunter] (21) Relay Coupler [Hunter] (23) Gamma Rifle Gamma Rifle Quantum Rifle Advanced Remote Datajack Stasis Projector Heavy Mace Peak State ------------ > --- POWER ------------ Light Quantum Reactor > --- PROPULSION ------- Improved Heavy Treads Armored Heavy Treads > --- UTILITY ---------- Advanced Heat Sink Huge Storage Unit Energy Well Advanced Target Analyzer Advanced Armor Integrity Analyzer Advanced Thermal Shield Relay Coupler [NC] Relay Coupler [ARC] Relay Coupler [Grunt] Relay Coupler [Brawler] Relay Coupler [Duelist] Relay Coupler [Sentry] Relay Coupler [Hunter] Relay Coupler [Heavy] > --- WEAPON ----------- Heavy Machine Gun Heavy Machine Gun Heavy Machine Gun Heavy Machine Gun > --- INVENTORY -------- Light Antimatter Reactor Light Antimatter Reactor Light Particle Reactor Biometal Medium Treads Myomer Leg Myomer Leg Myomer Leg Advanced Heat Sink Advanced Target Analyzer Relay Coupler [Grunt] Relay Coupler [Grunt] Relay Coupler [Brawler] Relay Coupler [Sentry] Relay Coupler [Hunter] Relay Coupler [Hunter] Relay Coupler [Hunter] Relay Coupler [Behemoth] Plasma Rifle Phase Gun Phase Gun Quantum Rifle Improved Remote Datajack Advanced Remote Datajack Stasis Projector Heavy Mace [Rating: 136] Favorites ----------- Power Micro Fission Core Engine Cooled Ion Engine Power Core Micro Fission Core Reactor Light Antimatter Reactor Propulsion Carbon-fiber Leg Treads Improved Heavy Treads Leg Carbon-fiber Leg Wheel Armored Wheel Utility High-capacity Storage Unit Device Advanced Thermal Shield Storage High-capacity Storage Unit Processor Advanced Armor Integrity Analyzer Hackware Relay Coupler [Brawler] Protection Hardened Medium Armor Plating Weapon Heavy Machine Gun Energy Gun Improved EM Shotgun Energy Cannon Beam Cannon Ballistic Gun Heavy Machine Gun Ballistic Cannon Heavy Flak Cannon Launcher Grenade Launcher Special Weapon Improved Remote Datajack Impact Weapon Heavy Mace Slashing Weapon Chainsword Piercing Weapon Force Lance Build | -11 -10 -10 -9 -9 -9 -8 -8 -8 -8 -7 -7 -6 -6 -5 -5 -4 -4 -4 -4 -3 -3 -2 -2 ------- Run | Scr Mat Min Mat Min Exi Min Mat Gar Mat Fac Gar Fac Gar Fac Gar Fac Gar Fac Gar Res Gar Res Gar Slots Evolved 16 | . . . 2 . . . 2 . . 2 . 2 . 2 . 2 . . . 2 . 2 . Power . | . . . . . . . . . . . . . . . . . . . . . . . . Propulsion 2 | . . . 2 . . . . . . . . . . . . . . . . . . . . Utility 12 | . . . . . . . 2 . . 2 . 2 . 2 . 2 . . . 1 . 1 . Weapon 2 | . . . . . . . . . . . . . . . . . . . . 1 . 1 . Parts Attached 406 | 7 14 6 12 11 5 . 10 27 14 4 36 23 29 6 21 5 32 31 25 9 27 3 49 Power 23 | 1 1 2 1 1 . . 1 1 . . 1 1 3 . 1 . 1 2 2 . . 1 3 Engine 13 | 1 1 2 1 1 . . 1 1 . . 1 1 2 . 1 . . . . . . . . Core 5 | . . . . . . . . . . . . . 1 . . . 1 2 1 . . . . Reactor 5 | . . . . . . . . . . . . . . . . . . . 1 . . 1 3 Propulsion 93 | 2 3 . 5 3 . . 4 14 5 1 8 3 10 . 9 . 6 5 6 2 . . 7 Treads 19 | 2 . . . . . . . 4 4 1 1 . . . . . . 2 2 2 . . 1 Leg 59 | . . . . . . . . 10 1 . 7 3 10 . 9 . 6 3 4 . . . 6 Wheel 15 | . 3 . 5 3 . . 4 . . . . . . . . . . . . . . . . Hover . | . . . . . . . . . . . . . . . . . . . . . . . . Flight . | . . . . . . . . . . . . . . . . . . . . . . . . Utility 133 | 2 7 . 2 . 5 . 3 4 2 2 8 7 10 4 5 5 18 12 5 2 7 1 22 Device 41 | . . . . . 1 . 2 . . . 2 1 3 1 1 2 10 4 2 1 4 . 7 Storage 20 | 2 6 . 2 . 3 . . 1 . . . . . . . 1 . 1 . . . 1 3 Processor 7 | . 1 . . . 1 . . 1 . . . . . . . . 1 1 . . . . 2 Hackware 47 | . . . . . . . . 1 1 1 5 4 3 2 3 2 5 5 3 1 3 . 8 Protection 18 | . . . . . . . 1 1 1 1 1 2 4 1 1 . 2 1 . . . . 2 Artifact . | . . . . . . . . . . . . . . . . . . . . . . . . Weapon 157 | 2 3 4 4 7 . . 2 8 7 1 19 12 6 2 6 . 7 12 12 5 20 1 17 Energy Gun 19 | . . . 2 1 . . . 2 1 . . . . . . . . . . . 3 . 10 Energy Cannon 1 | . 1 . . . . . . . . . . . . . . . . . . . . . . Ballistic Gun 64 | 2 1 3 2 3 . . 1 4 4 1 9 6 2 1 4 . 4 2 1 3 8 1 2 Ballistic Cannon 9 | . 1 . . 1 . . . . . . 1 . . . . . 1 1 4 . . . . Launcher 4 | . . 1 . 1 . . . . . . . 2 . . . . . . . . . . . Special Weapon 36 | . . . . 1 . . . 1 2 . 5 3 2 1 2 . 1 4 4 2 4 . 4 Impact Weapon 9 | . . . . . . . . . . . . . . . . . . 1 3 . 5 . . Slashing Weapon 12 | . . . . . . . 1 1 . . 4 1 2 . . . 1 1 . . . . 1 Piercing Weapon 3 | . . . . . . . . . . . . . . . . . . 3 . . . . . Special Melee Weapon . | . . . . . . . . . . . . . . . . . . . . . . . . Unidentified Prototypes 3 | . . . . . . . 1 . 1 . . . . . . . . . . . 1 . . Parts Lost 77 | . . . . 2 . . . 6 . . 5 10 8 . 3 2 4 9 7 . 4 . 17 Power 8 | . . . . . . . . . . . . . 3 . . . . 2 1 . . . 2 Propulsion 21 | . . . . 2 . . . 3 . . 4 5 1 . . . . 1 2 . . . 3 Utility 37 | . . . . . . . . 1 . . 1 3 4 . 2 2 4 6 3 . 2 . 9 Weapon 11 | . . . . . . . . 2 . . . 2 . . 1 . . . 1 . 2 . 3 Highest Loss Streak 14 | . . . . 2 . . . 4 . . 4 6 4 . 3 2 3 5 3 . 2 . 14 Average Slot Usage (%) 95 | . 99 100 99 99 100 100 99 99 100 100 97 89 97 98 93 93 99 92 90 93 89 86 83 Engine 5 | . 14 14 11 11 11 11 9 8 9 7 7 5 5 5 5 5 . . . . . . . Core 1 | . . . . . . . . . . . . . . . . . 4 4 1 4 4 2 . Treads 5 | . 18 . . . . . . 13 8 30 7 . . . . . . 2 11 6 9 8 4 Leg 11 | . . . . . . . . 12 27 . 20 21 25 23 23 21 21 16 1 5 . . 6 Wheel 6 | . 8 28 43 43 44 44 36 10 . . . . . . . . . . . . . . . Device 6 | . . . . . 1 . 9 2 . . 1 . 10 5 1 6 15 15 7 9 11 13 10 Storage 10 | . 28 28 22 22 17 11 9 9 9 7 7 6 6 5 5 10 8 5 10 9 7 4 6 Processor 3 | . . . . . 2 11 9 15 13 7 3 . . . . . 3 2 5 4 4 4 3 Hackware 22 | . . . . . . . . 1 9 15 25 35 25 39 35 30 27 31 36 38 37 34 26 Protection 3 | . . . . . . . 8 6 4 15 7 5 7 5 8 9 5 3 . . . . 1 Energy Gun 1 | . . . 12 2 . . . 5 . . . . . . . . . . . . . . 6 Ballistic Gun 8 | . 13 24 9 9 11 11 9 8 16 15 8 3 5 5 7 5 5 2 . 2 6 17 9 Ballistic Cannon 2 | . 7 1 . 5 11 11 1 . . . . . . . . . 1 3 7 9 3 . . Special Weapon 1 | . . . . . . . . . 1 . 2 4 3 5 2 5 3 2 1 1 1 . . Slashing Weapon 1 | . . . . . . . 6 3 . . 2 3 3 . . . . . . . . . . Naked Turns . | . . . . . . . . . . . . . . . . . . . . . . . . Heaviest Build 158 | 18 101 41 43 47 46 36 46 62 55 65 69 73 80 76 81 86 93 102 86 75 75 121 158 Greatest Support 145 | 40 40 24 44 46 46 46 46 49 80 80 80 50 65 60 60 60 95 145 145 135 135 135 135 Greatest Overweight (x) 34 | 1 4 1 1 1 . . 1 2 1 . 22 6 2 1 1 1 1 1 1 . . . 34 Average Overweight (x) . | . . 1 . . . . . . . . . 1 . 1 1 1 . . . . . . . Largest Inventory Capacity 25 | 8 25 15 15 15 15 15 15 20 20 20 20 20 20 20 20 20 20 20 20 20 20 25 25 Average Capacity 18 | 6 10 15 15 15 15 15 15 18 20 20 20 20 20 20 20 20 20 20 20 20 20 21 25 Most Carried 25 | 6 11 15 15 15 15 14 15 20 20 20 20 20 20 20 20 18 20 20 20 19 20 20 25 Average Carried 17 | 3 9 12 14 14 14 14 14 16 19 19 19 17 17 18 19 16 18 19 19 17 19 19 20 Final Capacity 25 | 8 15 15 15 15 15 15 15 20 20 20 20 20 20 20 20 20 20 20 20 20 20 25 25 Final Carried 21 | 6 11 15 15 15 14 14 15 20 20 20 20 15 18 20 19 14 20 20 18 19 20 20 21 Class Distribution -------------------- 33% | Bothacker-Mutant 32% | Botlord-Mutant 21% | Mutant 8% | Botlord-Skirmisher Dominant Class ---------------- Mutant | -10/Materials Mutant | -10/Mines Mutant | -9/Materials Mutant | -9/Mines Mutant | -9/Exiles Mutant | -8/Mines Mutant | -8/Materials Bothacker-Mutant | -8/Garrison Bothacker-Mutant | -8/Materials Bothacker-Mutant | -7/Factory Bothacker-Mutant | -7/Garrison Bothacker-Mutant | -6/Factory Bothacker-Mutant | -6/Garrison Bothacker-Mutant | -5/Factory Bothacker-Mutant | -5/Garrison Botlord-Mutant | -4/Factory Botlord-Mutant | -4/Garrison Botlord-Mutant | -4/Factory Botlord-Mutant | -4/Garrison Botlord-Skirmisher | -3/Research Botlord-Mutant | -3/Garrison Botlord-Skirmisher | -2/Research Botlord-Skirmisher | -2/Garrison Resources | -11 -10 -10 -9 -9 -9 -8 -8 -8 -8 -7 -7 -6 -6 -5 -5 -4 -4 -4 -4 -3 -3 -2 -2 ----------- Run | Scr Mat Min Mat Min Exi Min Mat Gar Mat Fac Gar Fac Gar Fac Gar Fac Gar Fac Gar Res Gar Res Gar Matter Collected 9293 | 278 270 448 20 378 . . 256 365 204 82 804 382 529 92 629 58 871 905 975 231 736 . 780 Remotely . | . . . . . . . . . . . . . . . . . . . . . . . . Salvage Created 8752 | 87 615 653 . 522 . . 394 936 104 74 878 342 274 28 950 . 306 634 525 46 782 . 602 Parts 424 | 4 43 36 . 28 . . 19 35 8 3 49 16 17 1 38 . 8 38 17 1 38 . 25 Haulers Intercepted 2 | . 2 . . . . . . . . . . . . . . . . . . . . . . Recyclers Shooed 4 | . 1 . . 1 . . . . . . . . . . . . . 2 . . . . . Parts Field Recycled . | . . . . . . . . . . . . . . . . . . . . . . . . Retrieved Matter . | . . . . . . . . . . . . . . . . . . . . . . . . Parts Self-Destructed . | . . . . . . . . . . . . . . . . . . . . . . . . Prevented . | . . . . . . . . . . . . . . . . . . . . . . . . Kills | -11 -10 -10 -9 -9 -9 -8 -8 -8 -8 -7 -7 -6 -6 -5 -5 -4 -4 -4 -4 -3 -3 -2 -2 ------- Run | Scr Mat Min Mat Min Exi Min Mat Gar Mat Fac Gar Fac Gar Fac Gar Fac Gar Fac Gar Res Gar Res Gar Combat Hostiles Destroyed 196 | . 11 19 . 8 . . 8 23 3 1 22 12 7 1 20 . 4 9 15 1 21 . 11 Melee 16 | . . . . . . . 5 6 . . 2 . 1 . . . . 1 1 . . . . Guns 128 | . 7 16 . 5 . . 3 14 3 1 18 6 6 1 20 . 4 1 . 1 11 . 11 Cannons 39 | . 4 . . 2 . . . . . . 2 . . . . . . 7 14 . 10 . . AOE 13 | . . 3 . 1 . . . 3 . . . 6 . . . . . . . . . . . Classes Destroyed 19 | 1 3 2 . 3 . . 1 2 . . . 4 1 . . . . 1 . . . . 1 Worker 3 | . . . . 3 . . . . . . . . . . . . . . . . . . . Builder 4 | . . . . 1 . . . . . . . . . . . . . 3 . . . . . Tunneler 4 | . . 2 . 2 . . . . . . . . . . . . . . . . . . . Hauler 2 | . 2 . . . . . . . . . . . . . . . . . . . . . . Recycler 3 | 1 . . . 2 . . . . . . . . . . . . . . . . . . . Watcher 7 | . 3 . . . . . 1 . 1 . 1 . . . . . . . . . . . 1 Swarmer 51 | . . . . . . . . 7 2 . 10 2 . 1 8 . . . 2 . 14 . 5 Cutter 1 | . . . . . . . . . . . . . . . . . . . . . . . 1 Saboteur 2 | . . . . . . . . . . . . . 2 . . . . . . . . . . Grunt 102 | . 11 18 . 5 . . 5 8 1 . 11 4 4 . 12 . 3 . 12 1 5 . 2 Brawler 3 | . . . . . . . . 2 . . . . . . . . 1 . . . . . . Duelist 8 | . . . . 1 . . . 6 . . 1 . . . . . . . . . . . . Sentry 5 | . . . . . . . 3 . . 1 . . . . . . . . . . . . 1 Specialist 3 | . . . . . . . . . . . . 2 . . . . . 1 . . . . . Hunter 5 | . . . . . . . . . . . . 1 . . . . 1 2 1 . . . . Programmer 13 | . . . . . . . . . . . . 2 1 . . . . 6 . . 2 . 2 Heavy 2 | . . . . . . . . . . . . 1 . . . . . 1 . . . . . Behemoth 1 | . . . . . . . . . . . . . . . . . . 1 . . . . . Assembled 3 | . . 1 . 2 . . . . . . . . . . . . . . . . . . . Best Kill Streak 9 | 1 3 6 . 5 . . 2 4 2 1 9 5 2 1 7 . 2 5 5 1 4 . 3 Combat Bots Only 9 | . 3 6 . 3 . . 2 4 2 1 9 5 2 1 7 . 2 4 5 1 4 . 3 Max Kills in Single Turn 3 | 1 1 3 . 2 . . 1 2 2 1 2 1 2 1 2 . 1 2 1 1 1 . 1 Gunslinging 1 | . . . . . . . . 1 1 . 1 . . . 1 . . . . . . . . Exploded 1 | . . 1 . 1 . . . 1 . . . 1 . . . . . . . . . . . Melee 1 | . . . . . . . 1 1 . . 1 . 1 . . . . 1 1 . . . . Uniques/NPCs Destroyed . | . . . . . . . . . . . . . . . . . . . . . . . . Combat | -11 -10 -10 -9 -9 -9 -8 -8 -8 -8 -7 -7 -6 -6 -5 -5 -4 -4 -4 -4 -3 -3 -2 -2 -------- Run | Scr Mat Min Mat Min Exi Min Mat Gar Mat Fac Gar Fac Gar Fac Gar Fac Gar Fac Gar Res Gar Res Gar Damage Taken 17598 | . 319 224 6 474 . . 272 923 136 137 2052 957 1165 43 1315 79 831 1694 1501 55 1631 . 3784 Core 3013 | . 54 65 3 63 . . 34 109 12 12 221 160 214 . 104 . 47 64 159 . 227 . 1465 Absorbed by Shields . | . . . . . . . . . . . . . . . . . . . . . . . . Core Remaining (%) 75 | 100 . 52 . . . 83 . . 71 . 66 . 56 . 89 . . . 76 . 82 . . Volleys Fired 733 | 2 46 52 . 29 . . 17 32 20 7 74 38 28 11 76 1 77 61 62 6 59 . 35 Largest 4 | 2 2 2 . 2 . . 2 2 2 2 2 2 2 1 2 1 2 2 2 3 3 . 4 Hottest 357 | 40 95 95 . 100 . . 58 90 43 46 62 50 50 40 53 28 100 100 106 131 135 . 357 Shots Fired 1277 | 4 92 88 . 56 . . 34 56 36 14 125 44 50 11 116 1 97 86 103 12 131 . 121 Gun 907 | 4 74 54 . 33 . . 25 54 32 14 108 32 44 6 110 1 73 37 2 3 86 . 115 Cannon 258 | . 18 31 . 16 . . 9 . . . 7 . . . . . 12 34 87 6 38 . . Launcher 19 | . . 3 . 5 . . . . . . . 11 . . . . . . . . . . . Special 93 | . . . . 2 . . . 2 4 . 10 1 6 5 6 . 12 15 14 3 7 . 6 Kinetic 1055 | 4 83 76 . 32 . . 34 31 32 14 115 32 44 6 110 1 85 71 89 9 106 . 81 Thermal 49 | . 9 9 . 2 . . . . . . . . . . . . . . . . . . 29 Explosive 19 | . . 3 . 5 . . . . . . . 11 . . . . . . . . . . . Electromagnetic 63 | . . . . 17 . . . 23 . . . . . . . . . . . . 18 . 5 Robot Hit Streak 54 | 3 17 18 . 12 . . 30 30 17 8 40 54 20 9 18 7 20 15 47 7 23 . 28 Robot Miss Streak 5 | . 2 3 . 3 . . 1 2 3 1 1 1 1 1 3 . 3 3 5 3 5 . 2 Penetration Max 2 | . . . . . . . . . . . . . . . 1 . 1 2 . . . . . Secondary Targets 24 | . 1 3 . . . . . 3 1 . 5 . 1 . 4 . 1 . . . 4 . 1 Max Gunslinging Chain 1 | . 1 1 . . . . . 1 1 . 1 . 1 . 1 . 1 . . . 1 . 1 Shots Hit Robots 1029 | 3 68 51 . 41 . . 38 66 31 11 112 37 38 8 81 1 78 71 95 10 110 . 79 Core Hits 545 | 2 29 41 . 26 . . 14 41 10 3 44 25 12 1 45 . 17 21 114 6 69 . 25 Critical Kills 4 | . . . . . . . 1 . . . . . . . 2 . . 1 . . . . . Critical Parts Destroyed 5 | . . . . . . . . . . . 1 . . . 3 . . . . . . . 1 Critical Strikes 15 | . . . . . . . 1 1 . . 1 . . . 5 . 1 4 . . . . 2 Destroy 10 | . . . . . . . 1 . . . 1 . . . 5 . 1 1 . . . . 1 Blast 3 | . . . . . . . . . . . . . . . . . . 3 . . . . . Sever 2 | . . . . . . . . 1 . . . . . . . . . . . . . . 1 Melee Attacks 119 | . . . . . . . 10 23 . . 17 . 13 . . . . 28 8 . 19 . 1 Thermal 27 | . . . . . . . . . . . . . 13 . . . . 14 . . . . . Impact 23 | . . . . . . . . . . . . . . . . . . 1 3 . 19 . . Slashing 51 | . . . . . . . 10 23 . . 17 . . . . . . . . . . . 1 Piercing 18 | . . . . . . . . . . . . . . . . . . 13 5 . . . . Sneak Attacks 8 | . . . . . . . 1 1 . . . . . . . . . 6 . . . . . Combat Hostiles 2 | . . . . . . . 1 1 . . . . . . . . . . . . . . . Follow-up Attacks . | . . . . . . . . . . . . . . . . . . . . . . . . Damage Inflicted 21379 | 32 800 1215 . 991 . . 970 1555 249 159 1664 1825 514 49 1461 23 1254 1912 2254 161 2462 . 1829 Guns 12850 | 32 628 791 . 467 . . 524 720 249 159 1402 497 514 49 1461 23 1056 683 21 65 1694 . 1815 Cannons 4668 | . 172 . . 202 . . 93 . . . 126 . . . . . 198 957 2056 96 768 . . Explosions 2275 | . . 424 . 322 . . . 129 . . . 1328 . . . . . 72 . . . . . Melee 1586 | . . . . . . . 353 706 . . 136 . . . . . . 200 177 . . . 14 Ramming . | . . . . . . . . . . . . . . . . . . . . . . . . Kinetic 15800 | 32 695 791 . 455 . . 617 343 249 159 1528 497 514 49 1461 23 1254 1640 2077 161 1999 . 1256 Thermal 750 | . 105 . . . . . . 129 . . . . . . . . . 72 . . . . 444 Explosive 2074 | . . 424 . 322 . . . . . . . 1328 . . . . . . . . . . . Electromagnetic 1169 | . . . . 214 . . . 377 . . . . . . . . . . . . 463 . 115 Impact . | . . . . . . . . . . . . . . . . . . . . . . . . Slashing 1209 | . . . . . . . 353 706 . . 136 . . . . . . . . . . . 14 Piercing 377 | . . . . . . . . . . . . . . . . . . 200 177 . . . . Highest Corruption 9 | . . . . 2 2 2 . . . . . 2 2 . . . . 9 9 . 1 . 2 Average Corruption 3 | . . . . 2 2 2 . . . . . 1 2 . . . . 8 9 . 1 . 1 Corruption Purged . | . . . . . . . . . . . . . . . . . . . . . . . . Effects 141 | . . . . 3 2 . . . . . . 1 12 . . . . 35 55 . 19 . 14 Message Errors 42 | . . . . 1 1 . . . . . . . 6 . . . . 5 14 . 10 . 5 Matter Fused 24 | . . . . . . . . . . . . . . . . . . 11 13 . . . . Heat Flow Errors 14 | . . . . . . . . . . . . 1 2 . . . . 4 4 . . . 3 Energy Discharges 23 | . . . . . . . . . . . . . 1 . . . . 4 10 . 5 . 3 Parts Rejected 2 | . . . . . . . . . . . . . . . . . . 1 1 . . . . Data Loss (minor) 26 | . . . . 2 1 . . . . . . . 3 . . . . 6 7 . 4 . 3 Data Loss (major) 4 | . . . . . . . . . . . . . . . . . . 1 3 . . . . Misfires 5 | . . . . . . . . . . . . . . . . . . 2 3 . . . . Weapon Failures 1 | . . . . . . . . . . . . . . . . . . 1 . . . . . Overload Shots . | . . . . . . . . . . . . . . . . . . . . . . . . Overflow Damage 122 | . . . . . . . . 15 . . . 58 . . . . 16 33 . . . . . Projectiles 48 | . . . . . . . . . . . . . . . . . 16 32 . . . . . Explosions 68 | . . . . . . . . 9 . . . 58 . . . . . 1 . . . . . Melee 6 | . . . . . . . . 6 . . . . . . . . . . . . . . . Knockbacks 75 | . . . . 5 . . 1 . . . . . . . . . 1 6 38 5 19 . . Impact . | . . . . . . . . . . . . . . . . . . . . . . . . Kinetic 69 | . . . . 5 . . 1 . . . . . . . . . 1 6 32 5 19 . . Secondary 6 | . . . . . . . . . . . . . . . . . . . 6 . . . . Self-Inflicted Damage 227 | . . . . . . . . 74 . . . 21 . . 60 . . 72 . . . . . Shots 9 | . . . . . . . . 3 . . . 2 . . 1 . . 3 . . . . . Rammed . | . . . . . . . . . . . . . . . . . . . . . . . . Targets Rammed . | . . . . . . . . . . . . . . . . . . . . . . . . Kicked . | . . . . . . . . . . . . . . . . . . . . . . . . Crushed . | . . . . . . . . . . . . . . . . . . . . . . . . Highest Temperature 500 | . 168 297 . 224 . . 13 11 21 9 56 234 196 . 88 . 12 203 274 57 . . 500 Average Temperature 54 | . 39 99 . 66 . . 13 5 5 9 15 46 41 . 20 . 12 41 49 27 . . 199 Received Heat Transfer 4825 | . 273 156 . 176 . . 153 288 81 60 822 69 684 . 565 . 196 9 519 21 159 . 594 Effects 5 | . . 1 . . . . . . . . . . . . . . . . 1 . . . 3 Shutdowns 1 | . . . . . . . . . . . . . . . . . . . . . . . 1 Energy Bleed 1 | . . . . . . . . . . . . . . . . . . . 1 . . . . Interference 2 | . . 1 . . . . . . . . . . . . . . . . . . . . 1 Short Circuit 1 | . . . . . . . . . . . . . . . . . . . . . . . 1 Siege Activations . | . . . . . . . . . . . . . . . . . . . . . . . . Robots Corrupted . | . . . . . . . . . . . . . . . . . . . . . . . . Combat Hostiles . | . . . . . . . . . . . . . . . . . . . . . . . . Parts Fried 5 | . . . . . . . . 3 . . . . . . . . . . . . 1 . 1 Impact Corruptions . | . . . . . . . . . . . . . . . . . . . . . . . . Robots Melted . | . . . . . . . . . . . . . . . . . . . . . . . . Combat Hostiles . | . . . . . . . . . . . . . . . . . . . . . . . . Parts Melted 2 | . . . . . . . . . . . . . . . . . . . 1 . 1 . . Heat Transferred 1014 | . 222 . . . . . . 150 . . . . . . . . . 50 . . . . 592 Parts Sabotaged 3 | . . . . . . . . . . . . . 3 . . . . . . . . . . Parts Stolen . | . . . . . . . . . . . . . . . . . . . . . . . . Parts Stripped . | . . . . . . . . . . . . . . . . . . . . . . . . Power Chain Reactions 3 | . . . . . . . . 3 . . . . . . . . . . . . . . . Missiles Intercepted . | . . . . . . . . . . . . . . . . . . . . . . . . Alert | -11 -10 -10 -9 -9 -9 -8 -8 -8 -8 -7 -7 -6 -6 -5 -5 -4 -4 -4 -4 -3 -3 -2 -2 ------- Run | Scr Mat Min Mat Min Exi Min Mat Gar Mat Fac Gar Fac Gar Fac Gar Fac Gar Fac Gar Res Gar Res Gar Peak Influence 1011 | 5 159 319 274 130 . . 156 767 446 156 692 341 325 154 1011 462 726 471 344 168 562 275 458 Initial 459 | . 2 . 105 24 . . . 29 321 119 19 314 49 147 93 459 285 330 82 168 39 275 182 Average 313 | 1 47 73 171 50 . . 43 497 365 110 431 243 192 141 657 459 610 200 226 50 309 275 330 Maximum Alert Level 3 | . . 1 1 . . . . 3 2 . 2 1 1 . 3 2 3 2 1 . 2 1 2 Low Security (%) 42 | 100 100 88 61 100 . 100 100 19 . 100 11 28 44 100 19 . . 61 39 100 36 . 20 Level 1 24 | . . 11 38 . . . . 4 55 . 12 71 55 . 3 . 11 31 60 . 30 100 56 Level 2 24 | . . . . . . . . 56 44 . 76 . . . 19 100 57 6 . . 33 . 22 Level 3 8 | . . . . . . . . 18 . . . . . . 58 . 31 . . . . . . Level 4 . | . . . . . . . . . . . . . . . . . . . . . . . . Level 5 . | . . . . . . . . . . . . . . . . . . . . . . . . High Security . | . . . . . . . . . . . . . . . . . . . . . . . . Max Security . | . . . . . . . . . . . . . . . . . . . . . . . . Squads Dispatched 25 | . 2 . . 1 . . 3 . 1 . . 5 . 1 . 1 . 10 . 1 . . . Investigation 3 | . 2 . . . . . . . . . . . . . . . . 1 . . . . . Extermination 7 | . . . . . . . . . . . . 2 . 1 . . . 4 . . . . . Reinforcement 15 | . . . . 1 . . 3 . 1 . . 3 . . . 1 . 5 . 1 . . . Assault . | . . . . . . . . . . . . . . . . . . . . . . . . Garrison . | . . . . . . . . . . . . . . . . . . . . . . . . Intercept . | . . . . . . . . . . . . . . . . . . . . . . . . Construction Impeded 1 | . . . . 1 . . . . . . . . . . . . . . . . . . . Haulers Reinforced . | . . . . . . . . . . . . . . . . . . . . . . . . Active Scanning Responses . | . . . . . . . . . . . . . . . . . . . . . . . . Cargo Convoy Interrupts . | . . . . . . . . . . . . . . . . . . . . . . . . Stealth | -11 -10 -10 -9 -9 -9 -8 -8 -8 -8 -7 -7 -6 -6 -5 -5 -4 -4 -4 -4 -3 -3 -2 -2 --------- Run | Scr Mat Min Mat Min Exi Min Mat Gar Mat Fac Gar Fac Gar Fac Gar Fac Gar Fac Gar Res Gar Res Gar Distress Signals 6 | . . 1 . . . . 1 . 1 1 . . . . . . . . . . . . 2 Communications Jammed 10 | . . . . . . . . . . . . 2 . . . . . 1 . 7 . . . Distress Signals 8 | . . . . . . . . . . . . 2 . . . . . 1 . 5 . . . Times Spotted 360 | . 19 25 5 11 . . 11 25 14 4 40 17 13 5 33 2 22 26 29 5 26 . 28 Peak Tracking Total 16 | . 3 4 3 16 . . 3 4 3 1 11 6 3 5 7 2 4 5 11 1 6 . 9 Tactical Retreats 28 | . 2 . 2 1 . . 1 1 . . 4 1 2 . 7 . . 2 . . 2 . 3 Traps | -11 -10 -10 -9 -9 -9 -8 -8 -8 -8 -7 -7 -6 -6 -5 -5 -4 -4 -4 -4 -3 -3 -2 -2 ------- Run | Scr Mat Min Mat Min Exi Min Mat Gar Mat Fac Gar Fac Gar Fac Gar Fac Gar Fac Gar Res Gar Res Gar Traps Triggered 40 | . 2 . 2 . . . . 6 . . 2 1 5 . 11 . 7 1 2 . . . 1 Indirectly . | . . . . . . . . . . . . . . . . . . . . . . . . Trap Hack Attempts . | . . . . . . . . . . . . . . . . . . . . . . . . Triggered . | . . . . . . . . . . . . . . . . . . . . . . . . Disarmed 4 | . 4 . . . . . . . . . . . . . . . . . . . . . . Reprogrammed . | . . . . . . . . . . . . . . . . . . . . . . . . Reused 1 | . . 1 . . . . . . . . . . . . . . . . . . . . . Traps Extracted . | . . . . . . . . . . . . . . . . . . . . . . . . Installed 1 | . . 1 . . . . . . . . . . . . . . . . . . . . . Triggered 2 | . . 2 . . . . . . . . . . . . . . . . . . . . . Machines | -11 -10 -10 -9 -9 -9 -8 -8 -8 -8 -7 -7 -6 -6 -5 -5 -4 -4 -4 -4 -3 -3 -2 -2 ---------- Run | Scr Mat Min Mat Min Exi Min Mat Gar Mat Fac Gar Fac Gar Fac Gar Fac Gar Fac Gar Res Gar Res Gar Machines Disabled 41 | . . . 1 . . . . 3 . . 4 . 2 2 6 . 4 9 4 . 4 . 2 Max in Single Turn 4 | . . . . . . . . 1 . . 1 . 1 . 2 . 1 4 1 . 1 . 1 Garrison Relay 27 | . . . . . . . . 3 . . 4 . 3 . 4 . 4 . 4 . 4 . 1 Phase Generator 1 | . . . . . . . . . . . . . . . 1 . . . . . . . . Machines Sabotaged . | . . . . . . . . . . . . . . . . . . . . . . . . Garrisons Compromised . | . . . . . . . . . . . . . . . . . . . . . . . . Overloaded Fab Kills . | . . . . . . . . . . . . . . . . . . . . . . . . Hacking | -11 -10 -10 -9 -9 -9 -8 -8 -8 -8 -7 -7 -6 -6 -5 -5 -4 -4 -4 -4 -3 -3 -2 -2 --------- Run | Scr Mat Min Mat Min Exi Min Mat Gar Mat Fac Gar Fac Gar Fac Gar Fac Gar Fac Gar Res Gar Res Gar Machines Accessed 42 | . 7 . 5 . 1 . 4 . 2 3 . 6 . 5 . 1 . 4 . 2 . 2 . Terminals 29 | . 6 . 4 . . . 3 . 2 2 . 3 . 4 . . . 3 . 1 . 1 . Fabricators . | . . . . . . . . . . . . . . . . . . . . . . . . Repair Stations 3 | . 1 . 1 . . . . . . . . 1 . . . . . . . . . . . Recycling Units 1 | . . . . . . . . . . . . 1 . . . . . . . . . . . Scanalyzers . | . . . . . . . . . . . . . . . . . . . . . . . . Garrison Access 8 | . . . . . . . 1 . . 1 . 1 . 1 . 1 . 1 . 1 . 1 . Total Hacks 104 | . 17 . 12 . 1 . 12 . 10 6 . 15 . 13 . 1 . 11 . 3 . 3 . Successful 58 | . 7 . 6 . 1 . 9 . 5 3 . 13 . 4 . 1 . 6 . 2 . 1 . Failed 46 | . 10 . 6 . . . 3 . 5 3 . 2 . 9 . . . 5 . 1 . 2 . Catastrophic 10 | . 4 . 2 . . . . . 1 . . . . 2 . . . . . 1 . . . Database Lockouts . | . . . . . . . . . . . . . . . . . . . . . . . . Manual 43 | . 6 . 5 . 1 . 7 . 6 1 . 2 . 9 . . . 5 . 1 . . . Terminals 81 | . 14 . 9 . . . 11 . 10 5 . 6 . 12 . . . 10 . 2 . 2 . Fabricators . | . . . . . . . . . . . . . . . . . . . . . . . . Repair Stations 11 | . 3 . 3 . . . . . . . . 5 . . . . . . . . . . . Recycling Units 2 | . . . . . . . . . . . . 2 . . . . . . . . . . . Scanalyzers . | . . . . . . . . . . . . . . . . . . . . . . . . Garrison Access 9 | . . . . . . . 1 . . 1 . 2 . 1 . 1 . 1 . 1 . 1 . Terminal Hacks 36 | . 5 . 4 . 1 . 5 . 5 2 . 5 . 3 . . . 5 . 1 . . . Record 11 | . 3 . . . . . . . . 2 . 1 . 3 . . . 2 . . . . . Robot Analysis 3 | . . . . . . . . . . . . 2 . . . . . 1 . . . . . Prototype ID Bank 3 | . 1 . 1 . . . . . 1 . . . . . . . . . . . . . . Level Access Points 2 | . . . . . . . . . 1 . . 1 . . . . . . . . . . . Branch Access Points 2 | . . . 1 . . . . . 1 . . . . . . . . . . . . . . Scanalyzer Index 1 | . . . . . . . 1 . . . . . . . . . . . . . . . . Garrison Index 3 | . . . . . . . 1 . . . . 1 . . . . . 1 . . . . . Alert Level 3 | . . . 1 . . . . . 1 . . . . . . . . 1 . . . . . Unreport Threat 2 | . . . . . . . 1 . . . . . . . . . . . . 1 . . . Locate Traps 1 | . . . . . . . . . 1 . . . . . . . . . . . . . . Disarm Traps 1 | . 1 . . . . . . . . . . . . . . . . . . . . . . Transport Status 1 | . . . 1 . . . . . . . . . . . . . . . . . . . . Reinforcement Status 1 | . . . . . . . 1 . . . . . . . . . . . . . . . . Recall Reinforcements 1 | . . . . . . . 1 . . . . . . . . . . . . . . . . EX-Prototype ID Bank 1 | . . . . . 1 . . . . . . . . . . . . . . . . . . Fabricator Hacks . | . . . . . . . . . . . . . . . . . . . . . . . . Repair Station Hacks 9 | . 2 . 2 . . . . . . . . 5 . . . . . . . . . . . Scan Component 5 | . 1 . 1 . . . . . . . . 3 . . . . . . . . . . . Repair 4 | . 1 . 1 . . . . . . . . 2 . . . . . . . . . . . Recycling Unit Hacks 1 | . . . . . . . . . . . . 1 . . . . . . . . . . . Report Inventory 1 | . . . . . . . . . . . . 1 . . . . . . . . . . . Scanalyzer . | . . . . . . . . . . . . . . . . . . . . . . . . Garrison Access Hacks 9 | . . . . . . . 1 . . 1 . 2 . 1 . 1 . 1 . 1 . 1 . Unlock Access 8 | . . . . . . . 1 . . 1 . 1 . 1 . 1 . 1 . 1 . 1 . Coupler Status 1 | . . . . . . . . . . . . 1 . . . . . . . . . . . Unauthorized Hacks 3 | . . . . . . . 3 . . . . . . . . . . . . . . . . Terminals 3 | . . . . . . . 3 . . . . . . . . . . . . . . . . Track 1 | . . . . . . . 1 . . . . . . . . . . . . . . . . Botnet 1 | . . . . . . . 1 . . . . . . . . . . . . . . . . Operators 1 | . . . . . . . 1 . . . . . . . . . . . . . . . . Fabricators . | . . . . . . . . . . . . . . . . . . . . . . . . Repair Stations . | . . . . . . . . . . . . . . . . . . . . . . . . Recycling Units . | . . . . . . . . . . . . . . . . . . . . . . . . Scanalyzers . | . . . . . . . . . . . . . . . . . . . . . . . . Garrison Access . | . . . . . . . . . . . . . . . . . . . . . . . . Data Cores Recovered 1 | . . . . . . . . . . . . . . 1 . . . . . . . . . Used . | . . . . . . . . . . . . . . . . . . . . . . . . Hacking Detections 32 | . 5 . 4 . . . 3 . 2 2 . 5 . 4 . 1 . 3 . 1 . 2 . Full Trace Events 1 | . . . . . . . . . . . . . . . . . . 1 . . . . . Feedback Events . | . . . . . . . . . . . . . . . . . . . . . . . . Feedback Blocked . | . . . . . . . . . . . . . . . . . . . . . . . . Robot Schematics Acquired . | . . . . . . . . . . . . . . . . . . . . . . . . Robots Built . | . . . . . . . . . . . . . . . . . . . . . . . . Authchips . | . . . . . . . . . . . . . . . . . . . . . . . . Time . | . . . . . . . . . . . . . . . . . . . . . . . . Total Robot Build Rating . | . . . . . . . . . . . . . . . . . . . . . . . . Part Schematics Acquired . | . . . . . . . . . . . . . . . . . . . . . . . . Parts Built . | . . . . . . . . . . . . . . . . . . . . . . . . Authchips . | . . . . . . . . . . . . . . . . . . . . . . . . Time . | . . . . . . . . . . . . . . . . . . . . . . . . Total Part Build Rating . | . . . . . . . . . . . . . . . . . . . . . . . . Parts Repaired 4 | . 1 . 1 . . . . . . . . 2 . . . . . . . . . . . Time 136 | . 32 . 16 . . . . . . . . 88 . . . . . . . . . . . Parts Recycled . | . . . . . . . . . . . . . . . . . . . . . . . . Recycled Matter . | . . . . . . . . . . . . . . . . . . . . . . . . Retrieved Matter . | . . . . . . . . . . . . . . . . . . . . . . . . Retrieved Components . | . . . . . . . . . . . . . . . . . . . . . . . . Parts Scanalyzed . | . . . . . . . . . . . . . . . . . . . . . . . . Part Schematics Acquired . | . . . . . . . . . . . . . . . . . . . . . . . . Parts Damaged . | . . . . . . . . . . . . . . . . . . . . . . . . Bothacking | -11 -10 -10 -9 -9 -9 -8 -8 -8 -8 -7 -7 -6 -6 -5 -5 -4 -4 -4 -4 -3 -3 -2 -2 ------------ Run | Scr Mat Min Mat Min Exi Min Mat Gar Mat Fac Gar Fac Gar Fac Gar Fac Gar Fac Gar Res Gar Res Gar Used RIF Installer 8 | . . . . . . . . 1 . . 1 . 1 . 1 . 1 . 1 . 1 . 1 Hotswap 1 | . . . . . . . . . . . . . 1 . . . . . . . . . . Threat Obfuscator 1 | . . . . . . . . . . . . . . . . . 1 . . . . . . Signal Jammer 1 | . . . . . . . . . . . 1 . . . . . . . . . . . . Robot Detection 1 | . . . . . . . . . . . . . . . . . . . . . . . 1 Patrol Navigation 1 | . . . . . . . . . . . . . . . 1 . . . . . . . . Program Shield 1 | . . . . . . . . . . . . . . . . . . . . . 1 . . Autoassimilate 1 | . . . . . . . . . . . . . . . . . . . 1 . . . . Robots Hacked 69 | . . . . . . . . 1 3 . 8 1 5 3 4 . 10 9 12 3 5 . 5 Non-combat 5 | . . . . . . . . . 1 . . . . 3 . . . 1 . . . . . Combat 64 | . . . . . . . . 1 2 . 8 1 5 . 4 . 10 8 12 3 5 . 5 Autoassimilated 3 | . . . . . . . . . . . . . . . . . . . 1 . . . 2 Robot Hacks Applied 69 | . . . . . . . . 1 3 . 8 1 5 4 4 . 10 10 11 3 6 . 3 parse_system 2 | . . . . . . . . . 1 . . . . . . . . . . . 1 . . find_chute 2 | . . . . . . . . . . . . . . 2 . . . . . . . . . check_alert 1 | . . . . . . . . . . . . . . . . . . 1 . . . . . link_fov 2 | . . . . . . . . . . . . . . 2 . . . . . . . . . scatter_targeting 2 | . . . . . . . . . . . . . . . . . . . 2 . . . . spike_heat 1 | . . . . . . . . . . . . . 1 . . . . . . . . . . overload_power 2 | . . . . . . . . . . . . . 1 . . . . 1 . . . . . disable_weapons 1 | . . . . . . . . . . . . . . . . . 1 . . . . . . go_dormant 1 | . . . . . . . . . . . . . . . . . . . 1 . . . . overwrite_iff 1 | . . . . . . . . . . . 1 . . . . . . . . . . . . formatsys_high 54 | . . . . . . . . 1 2 . 7 1 3 . 4 . 9 8 8 3 5 . 3 Relay Couplers Released 106 | . . . . . . . . 13 . . 13 . 11 . 15 . 18 . 17 . 16 . 3 Machine Destruction 106 | . . . . . . . . 13 . . 13 . 11 . 15 . 18 . 17 . 16 . 3 Attached 43 | . . . . . . . . 1 1 1 5 3 3 . 3 2 5 4 3 1 3 . 8 Fabnet Peak Effective % . | . . . . . . . . . . . . . . . . . . . . . . . . Robots Rewired . | . . . . . . . . . . . . . . . . . . . . . . . . Allies Hacked 5 | . . . . . . . . . . . . . . . . . . 1 . . 3 . 1 Hacks Repelled . | . . . . . . . . . . . . . . . . . . . . . . . . Allies | -11 -10 -10 -9 -9 -9 -8 -8 -8 -8 -7 -7 -6 -6 -5 -5 -4 -4 -4 -4 -3 -3 -2 -2 -------- Run | Scr Mat Min Mat Min Exi Min Mat Gar Mat Fac Gar Fac Gar Fac Gar Fac Gar Fac Gar Res Gar Res Gar Total Allies 61 | . . 4 . . . . . 1 2 . 8 1 3 . 4 . 9 7 9 3 5 . 5 Largest Group 9 | . . 4 3 2 . . . 1 3 1 2 2 2 2 4 4 6 7 2 3 6 6 9 Highest-Rated Group 553 | . . 71 40 32 . . . 15 45 15 64 64 73 73 156 156 273 382 105 192 367 367 553 Highest-Rated Ally 129 | . . 31 16 16 . . . 15 15 15 32 32 41 41 49 49 116 129 58 64 64 64 64 Total Orders 25 | . . . . . . . . . . . . . 2 . 5 . 8 1 . . 4 . 5 STAY 16 | . . . . . . . . . . . . . 1 . 3 . 5 1 . . 3 . 3 ROAM 1 | . . . . . . . . . . . . . . . . . . . . . . . 1 FOLLOW 8 | . . . . . . . . . . . . . 1 . 2 . 3 . . . 1 . 1 Ally Attacks 419 | . . 13 22 9 . . . 7 21 4 16 16 17 12 11 3 74 64 35 9 2 . 84 Total Damage 11844 | . . 198 148 107 . . . 140 343 93 359 533 422 355 107 98 1988 2236 932 433 88 . 3264 Kills 75 | . . 10 3 . . . . . 3 1 1 6 2 7 1 1 12 10 3 2 . . 13 Allies Corrupted 1 | . . . . . . . . . . . . . . . . . . 1 . . . . . Allies Melted 2 | . . . . . . . . . . . . . . . . . . . . 2 . . . Intel | -11 -10 -10 -9 -9 -9 -8 -8 -8 -8 -7 -7 -6 -6 -5 -5 -4 -4 -4 -4 -3 -3 -2 -2 ------- Run | Scr Mat Min Mat Min Exi Min Mat Gar Mat Fac Gar Fac Gar Fac Gar Fac Gar Fac Gar Res Gar Res Gar Robot Analysis Total 3 | . . . . . . . . . . . . 2 . . . . . 1 . . . . . Derelict Logs Recovered 1 | . . . . 1 . . . . . . . . . . . . . . . . . . . Drone Launches . | . . . . . . . . . . . . . . . . . . . . . . . . Drone Recoveries . | . . . . . . . . . . . . . . . . . . . . . . . . Exploration | -11 -10 -10 -9 -9 -9 -8 -8 -8 -8 -7 -7 -6 -6 -5 -5 -4 -4 -4 -4 -3 -3 -2 -2 ------------- Run | Scr Mat Min Mat Min Exi Min Mat Gar Mat Fac Gar Fac Gar Fac Gar Fac Gar Fac Gar Res Gar Res Gar Turns Passed 27344 | 91 1607 1361 457 710 388 111 848 1762 638 493 2366 1237 1233 763 2202 44 2340 1468 1531 200 3561 149 1784 Spaces Moved 11927 | 45 943 296 377 414 431 124 291 647 319 264 1016 463 511 373 838 19 1104 677 704 110 1241 84 636 Core 13 | 5 . . . . . . . . . . 6 . . . . . . . . . . . 2 Treads 4061 | 40 561 . . . . . . 385 88 264 233 . . . . . . 122 613 67 1241 84 363 Legs 5420 | . . . . . . . . 144 231 . 777 463 511 373 838 19 1104 555 91 43 . . 271 Wheels 2433 | . 382 296 377 414 431 124 291 118 . . . . . . . . . . . . . . . Hover . | . . . . . . . . . . . . . . . . . . . . . . . . Flight . | . . . . . . . . . . . . . . . . . . . . . . . . Fastest Speed 50 | 50 105 105 85 85 87 87 87 87 122 165 165 190 120 190 190 190 120 120 120 120 165 165 165 Average Speed 159 | 152 138 105 85 89 87 87 88 207 162 165 196 209 171 190 190 190 162 153 158 147 165 165 184 Slowest Speed 1750 | 160 160 105 101 102 87 87 97 330 250 165 1150 540 260 190 190 190 190 190 240 165 165 165 1750 Overloaded Moves . | . . . . . . . . . . . . . . . . . . . . . . . . Propulsion Burnouts . | . . . . . . . . . . . . . . . . . . . . . . . . Robots Hopped . | . . . . . . . . . . . . . . . . . . . . . . . . Cave-ins Triggered 2 | . . . . 1 . . . . . . . . . . . . . 1 . . . . . Exploration Rate (%) 44 | 4 95 44 35 81 78 29 29 61 25 7 88 10 50 14 98 1 83 15 87 3 85 3 36 Regions Visited 23 Branch Regions 4 Pre-discovered Areas 1 | . . . . 1 . . . . . . . . . . . . . . . . . . . Known Exits Taken 10 | . . . 1 . . . 1 . 1 1 . 1 . 1 . 1 . 1 . 1 . 1 . Unknown Exits Taken 6 | 1 1 1 . 1 1 1 . . . . . . . . . . . . . . . . . Scrap Searched 2 | . . 1 . 1 . . . . . . . . . . . . . . . . . . . Spaces Dug 14 | . . . . 2 . . . . . . 1 . . . . . . 8 . . 3 . . Terrain Destroyed 243 | . . 13 . 16 . . . 3 . . 1 62 . . 77 . 6 59 2 . 4 . . Melee 12 | . . . . . . . . . . . 1 . . . . . . 8 . . 3 . . Projectile 35 | . . . . 2 . . . . . . . . . . 2 . 6 22 2 . 1 . . AOE 196 | . . 13 . 14 . . . 3 . . . 62 . . 75 . . 29 . . . . . Terrain Rammed . | . . . . . . . . . . . . . . . . . . . . . . . . Walls Destroyed . | . . . . . . . . . . . . . . . . . . . . . . . . Machines Disabled . | . . . . . . . . . . . . . . . . . . . . . . . . Actions | -11 -10 -10 -9 -9 -9 -8 -8 -8 -8 -7 -7 -6 -6 -5 -5 -4 -4 -4 -4 -3 -3 -2 -2 --------- Run | Scr Mat Min Mat Min Exi Min Mat Gar Mat Fac Gar Fac Gar Fac Gar Fac Gar Fac Gar Res Gar Res Gar Total 18884 | 62 1163 1257 511 695 444 126 837 976 409 309 1255 686 796 420 1353 25 1553 973 1013 139 2614 94 1174 Wait 5153 | . 129 893 116 231 . 3 487 193 46 25 75 159 173 23 341 . 272 146 184 8 1237 . 412 Move 11908 | 44 942 295 376 413 430 123 291 646 318 264 1015 462 509 373 837 19 1103 675 703 110 1240 84 636 Hop . | . . . . . . . . . . . . . . . . . . . . . . . . Pick Up 209 | 8 15 6 3 5 4 . 11 17 5 5 13 3 11 4 6 . 18 17 15 2 14 4 23 Fast Attach 75 | 6 4 . 5 . . . 2 2 . . 6 5 8 1 2 . 3 3 6 2 6 . 14 Attach 93 | 1 . . 3 2 1 . 1 6 1 2 1 7 7 2 3 5 3 13 8 3 3 1 20 Detach 8 | . . . . . . . . . . . . . . . . . . 2 1 4 . . 1 Swap 238 | . 10 6 4 9 4 . 7 19 13 2 29 11 14 3 16 . 26 15 11 4 18 2 15 Drop 186 | 1 17 4 4 6 5 . 11 10 6 4 16 1 8 3 16 . 16 11 11 . 16 3 17 Fire 733 | 2 46 52 . 29 . . 17 32 20 7 74 38 28 11 76 1 77 61 62 6 59 . 35 Melee 119 | . . . . . . . 10 23 . . 17 . 13 . . . . 28 8 . 19 . 1 Ram . | . . . . . . . . . . . . . . . . . . . . . . . . Kick . | . . . . . . . . . . . . . . . . . . . . . . . . Crush . | . . . . . . . . . . . . . . . . . . . . . . . . Escape Stasis 153 | . . . . . . . . 28 . . 5 . 25 . 55 . 35 1 4 . . . . Rewire 8 | . . . . . . . . . . . 4 . . . 1 . . 1 . . 2 . . Trap 1 | . . 1 . . . . . . . . . . . . . . . . . . . . . Miscellaneous . | . . . . . . . . . . . . . . . . . . . . . . . . Route ------- -11/Scrapyard -10/Materials (discovered 5 exits: *Mat x3 / [*Min x2]) -10/Mines -9/Materials (discovered 3 exits: *Mat / *Min x2) -9/Mines (discovered 2 exits: *Mat / *Exi) -9/Exiles -8/Mines -8/Materials (discovered 2 exits: *Fac / Gar) -8/Garrison (discovered 2 exits: *Mat x2) -8/Materials (discovered 3 exits: *Fac x3) -7/Factory -7/Garrison (discovered 3 exits: *Fac x3) -6/Factory (discovered 5 exits: Fac x4 / Gar) -6/Garrison (discovered 2 exits: *Fac x2) -5/Factory -5/Garrison (discovered 3 exits: *Fac x3) -4/Factory -4/Garrison (discovered 3 exits: *Fac x3) -4/Factory -4/Garrison (discovered 3 exits: *Res x3) -3/Research -3/Garrison (discovered 3 exits: *Res x3) -2/Research -2/Garrison History --------- Turn | Location | Event 15 | -11/Scrapyard | Discovered new exit (range 15) 92 | -11/Scrapyard | Entered Materials 136 | -10/Materials | Discovered new exit (range 10) 311 | -10/Materials | Build established: Mutant 642 | -10/Materials | Discovered new exit (range 8) 1122 | -10/Materials | Discovered new exit (range 15) 1154 | -10/Materials | Discovered new exit (range 11) 1274 | -10/Materials | Discovered new exit (range 14) 1678 | -10/Materials | Repaired Arm. Wheel 1699 | -10/Materials | Entered Mines 1702 | -10/Mines | Received a Mining Laser from a helpful Derelict 1747 | -10/Mines | Excavation squad dispatched 1747 | -10/Mines | A large section of the Mines collapsed 1997 | -10/Mines | Excavation squad dispatched 2247 | -10/Mines | Excavation squad dispatched 2497 | -10/Mines | Excavation squad dispatched 2673 | -10/Mines | Found a hidden stash of uninstalled traps 2747 | -10/Mines | Excavation squad dispatched 2903 | -10/Mines | Assisted by bots powering up and referring to "LRC-V3" 2997 | -10/Mines | Excavation squad dispatched 3002 | -10/Mines | Discovered new exit (range 12) 3060 | -10/Mines | Entered Materials 3060 | -9/Materials | Accompanied by 3 allies 3060 | -9/Materials | Evolved 2 slots: Propulsion x2 3133 | -9/Materials | Discovered new exit (range 13) 3202 | -9/Materials | Identified exit to Mines 3226 | -9/Materials | Repaired Arm. Wheel 3385 | -9/Materials | Discovered new exit (range 7) 3517 | -9/Materials | Entered Mines 3517 | -9/Mines | Accompanied by 2 allies 3519 | -9/Mines | Assembled infested the area 3830 | -9/Mines | Met a Derelict who couldn't figure out how to use a Trap Extractor 3836 | -9/Mines | Crushed by falling debris 3925 | -9/Mines | Discovered new exit (range 9) 4143 | -9/Mines | Received a Rocket Launcher from a helpful Derelict 4184 | -9/Mines | Learned location of Recycling (-7) 4224 | -9/Mines | Discovered new exit (range 5) 4227 | -9/Mines | Entered Exiles 4249 | -9/Exiles | Met 8R-AWN 4264 | -9/Exiles | Met EX-HEX 4291 | -9/Exiles | Met EX-BIN 4306 | -9/Exiles | Aligned with FarCom system 4307 | -9/Exiles | Given EX-Vault access code 4337 | -9/Exiles | Opened EX-Vault 4342 | -9/Exiles | Found Modified TNC 4360 | -9/Exiles | Warned to stay clear of 0b10 Research branches 4476 | -9/Exiles | Met EX-DEC 4488 | -9/Exiles | Visited The Gauntlet 4602 | -9/Exiles | Discovered new exit (range 11) 4615 | -9/Exiles | Left Exiles lab with Modified TNC 4615 | -9/Exiles | Entered Mines 4715 | -8/Mines | Discovered new exit (range 9) 4726 | -8/Mines | Entered Materials 4726 | -8/Materials | Evolved 2 slots: Utility x2 5227 | -8/Materials | Discovered new exit (range 7) 5574 | -8/Materials | Identified exit to Garrison 5574 | -8/Materials | Entered Garrison 5620 | -8/Garrison | Triggered checkpoint 5640 | -8/Garrison | Garrison Relay disabled 5722 | -8/Garrison | Triggered checkpoint 5722 | -8/Garrison | Triggered checkpoint 5776 | -8/Garrison | Lost 4 parts (3n1u) 5934 | -8/Garrison | Discovered new exit (range 13) 5962 | -8/Garrison | Triggered checkpoint 6022 | -8/Garrison | Garrison Relay disabled 6146 | -8/Garrison | Installed Relay Interface Framework 6441 | -8/Garrison | Build established: Bothacker-Mutant 6458 | -8/Garrison | Garrison Relay disabled 6520 | -8/Garrison | Triggered checkpoint 6560 | -8/Garrison | Triggered checkpoint 6636 | -8/Garrison | Triggered checkpoint 6905 | -8/Garrison | Discovered new exit (range 15) 7336 | -8/Garrison | Entered Materials 7336 | -8/Materials | Accompanied by 1 ally 7669 | -8/Materials | Identified exit to Factory 7974 | -8/Materials | Entered Factory 7974 | -7/Factory | Accompanied by 1 ally 7974 | -7/Factory | Evolved 2 slots: Utility x2 8467 | -7/Factory | Identified exit to Garrison 8467 | -7/Factory | Entered Garrison 8638 | -7/Garrison | Triggered checkpoint 8686 | -7/Garrison | Garrison Relay disabled 8706 | -7/Garrison | Triggered checkpoint 8948 | -7/Garrison | Triggered checkpoint 9001 | -7/Garrison | Triggered checkpoint 9027 | -7/Garrison | Destroyed 9 combat bots 9040 | -7/Garrison | Triggered checkpoint 9089 | -7/Garrison | Lost 4 parts (3n1u) 9409 | -7/Garrison | Discovered new exit (range 12) 9512 | -7/Garrison | Triggered checkpoint 9535 | -7/Garrison | Garrison Relay disabled 9568 | -7/Garrison | Triggered checkpoint 9843 | -7/Garrison | Discovered new exit (range 14) 10105 | -7/Garrison | Discovered new exit (range 11) 10137 | -7/Garrison | Expanded RIF knowledge: Signal Jamming 10182 | -7/Garrison | Triggered checkpoint 10485 | -7/Garrison | Garrison Relay disabled 10712 | -7/Garrison | Triggered checkpoint 10767 | -7/Garrison | Garrison Relay disabled 10833 | -7/Garrison | Entered Factory 10833 | -6/Factory | Accompanied by 2 allies 10833 | -6/Factory | Evolved 2 slots: Utility x2 11155 | -6/Factory | Repaired Rnf. Deuterium Engine 11201 | -6/Factory | Repaired Remote Datajack 11245 | -6/Factory | Identified exit to Factory 11575 | -6/Factory | Lost 3 parts (2n1u) 11681 | -6/Factory | Lost 6 parts (2n2u2w) 12034 | -6/Factory | Identified exit to Garrison 12070 | -6/Factory | Entered Garrison 12070 | -6/Garrison | Accompanied by 1 ally 12094 | -6/Garrison | Triggered checkpoint 12244 | -6/Garrison | Triggered checkpoint 12257 | -6/Garrison | Garrison Relay disabled 12364 | -6/Garrison | Triggered checkpoint 12477 | -6/Garrison | Discovered exit to Factory (range 9) 12498 | -6/Garrison | Triggered checkpoint 12533 | -6/Garrison | Garrison Relay disabled 12602 | -6/Garrison | Expanded RIF knowledge: Hotswap 12794 | -6/Garrison | Triggered checkpoint 12846 | -6/Garrison | Lost 4 parts (2p2u) 12984 | -6/Garrison | Discovered exit to Factory (range 10) 13064 | -6/Garrison | Triggered checkpoint 13079 | -6/Garrison | Garrison Relay disabled 13303 | -6/Garrison | Entered Factory 13303 | -5/Factory | Accompanied by 2 allies 13303 | -5/Factory | Evolved 2 slots: Utility x2 14066 | -5/Factory | Identified exit to Garrison 14066 | -5/Factory | Entered Garrison 14066 | -5/Garrison | Accompanied by 2 allies 14168 | -5/Garrison | Triggered checkpoint 14320 | -5/Garrison | Garrison Relay disabled 14491 | -5/Garrison | Phase Generator disabled 14531 | -5/Garrison | Triggered checkpoint 14593 | -5/Garrison | Destroyed 7 combat bots 14934 | -5/Garrison | Lost 3 parts (2u1w) 15125 | -5/Garrison | Garrison Relay disabled 15200 | -5/Garrison | Discovered new exit (range 15) 15466 | -5/Garrison | Discovered new exit (range 13) 15506 | -5/Garrison | Expanded RIF knowledge: Patrol Navigation 15667 | -5/Garrison | Triggered checkpoint 15731 | -5/Garrison | Garrison Relay disabled 15801 | -5/Garrison | Build established: Botlord-Mutant 15979 | -5/Garrison | Triggered checkpoint 16025 | -5/Garrison | Triggered checkpoint 16040 | -5/Garrison | Garrison Relay disabled 16073 | -5/Garrison | Discovered new exit (range 14) 16268 | -5/Garrison | Entered Factory 16268 | -4/Factory | Accompanied by 4 allies 16268 | -4/Factory | Evolved 2 slots: Utility x2 16309 | -4/Factory | Identified exit to Garrison 16312 | -4/Factory | Entered Garrison 16312 | -4/Garrison | Accompanied by 3 allies 16358 | -4/Garrison | Triggered checkpoint 16570 | -4/Garrison | Garrison Relay disabled 16703 | -4/Garrison | Spotted B-86 Titan 16704 | -4/Garrison | Assimilated Titan 7a with formatsys_high 16804 | -4/Garrison | Triggered checkpoint 16810 | -4/Garrison | Triggered checkpoint 16972 | -4/Garrison | Discovered new exit (range 8) 17027 | -4/Garrison | Triggered checkpoint 17299 | -4/Garrison | Garrison Relay disabled 17513 | -4/Garrison | Discovered new exit (range 8) 17572 | -4/Garrison | Triggered checkpoint 17589 | -4/Garrison | Garrison Relay disabled 17752 | -4/Garrison | Discovered new exit (range 14) 17794 | -4/Garrison | Expanded RIF knowledge: Threat Obfuscation 17838 | -4/Garrison | Triggered checkpoint 17964 | -4/Garrison | Lost 3 parts (3u) 17984 | -4/Garrison | Garrison Relay disabled 18652 | -4/Garrison | Entered Factory 18652 | -4/Factory | Accompanied by 5 allies 18831 | -4/Factory | Spotted B-86 Titan 18833 | -4/Factory | Assimilated Titan 7b with formatsys_high 19036 | -4/Factory | Crushed by falling debris 19068 | -4/Factory | Lost 5 parts (1p4u) 19116 | -4/Factory | Destroyed Titan 7b 19972 | -4/Factory | P-70 Sage assimilated allied Sentinel 7b 20112 | -4/Factory | Identified exit to Garrison 20120 | -4/Factory | Entered Garrison 20212 | -4/Garrison | Triggered checkpoint 20236 | -4/Garrison | Garrison Relay disabled 20314 | -4/Garrison | Triggered checkpoint 20319 | -4/Garrison | Triggered checkpoint 20323 | -4/Garrison | Triggered checkpoint 20328 | -4/Garrison | Triggered checkpoint 20621 | -4/Garrison | Discovered new exit (range 12) 20653 | -4/Garrison | Expanded RIF knowledge: Autoassimilate 20699 | -4/Garrison | Triggered checkpoint 20799 | -4/Garrison | Garrison Relay disabled 20964 | -4/Garrison | Triggered checkpoint 21001 | -4/Garrison | Garrison Relay disabled 21054 | -4/Garrison | Discovered new exit (range 13) 21390 | -4/Garrison | Discovered new exit (range 10) 21432 | -4/Garrison | Triggered checkpoint 21507 | -4/Garrison | Lost 3 parts (1p1n1u) 21526 | -4/Garrison | Garrison Relay disabled 21651 | -4/Garrison | Entered Research 21651 | -3/Research | Evolved 2 slots: Utility x1, Weapon x1 21851 | -3/Research | Identified exit to Garrison 21851 | -3/Research | Entered Garrison 21851 | -3/Garrison | Accompanied by 1 ally 22138 | -3/Garrison | Triggered checkpoint 22182 | -3/Garrison | Triggered checkpoint 22245 | -3/Garrison | Garrison Relay disabled 23194 | -3/Garrison | Triggered checkpoint 23618 | -3/Garrison | Build established: Botlord-Skirmisher 23749 | -3/Garrison | Discovered new exit (range 11) 23837 | -3/Garrison | Garrison Relay disabled 24108 | -3/Garrison | Build established: Botlord-Mutant 24335 | -3/Garrison | Discovered new exit (range 15) 24398 | -3/Garrison | Triggered checkpoint 24477 | -3/Garrison | Garrison Relay disabled 24592 | -3/Garrison | Triggered checkpoint 24905 | -3/Garrison | Discovered new exit (range 12) 24933 | -3/Garrison | Expanded RIF knowledge: Program Shield 24984 | -3/Garrison | Triggered checkpoint 25019 | -3/Garrison | Garrison Relay disabled 25412 | -3/Garrison | Entered Research 25412 | -2/Research | Accompanied by 6 allies 25412 | -2/Research | Evolved 2 slots: Utility x1, Weapon x1 25476 | -2/Research | Build established: Botlord-Skirmisher 25561 | -2/Research | Identified exit to Garrison 25561 | -2/Research | Entered Garrison 25561 | -2/Garrison | Accompanied by 6 allies 25570 | -2/Garrison | Expanded RIF knowledge: Robot Detection 25688 | -2/Garrison | Triggered checkpoint 26239 | -2/Garrison | Triggered checkpoint 26366 | -2/Garrison | Garrison Relay disabled 26501 | -2/Garrison | Spotted B-90 Cyclops 26509 | -2/Garrison | Triggered checkpoint 26557 | -2/Garrison | Core integrity fell below 50% 26564 | -2/Garrison | Core integrity fell below 20% 26582 | -2/Garrison | Lost 14 parts (1p2n8u3w) 26878 | -2/Garrison | Triggered checkpoint 26880 | -2/Garrison | Triggered checkpoint 27006 | -2/Garrison | Triggered checkpoint 27008 | -2/Garrison | Triggered checkpoint 27345 | -2/Garrison | Destroyed by L-61 Swordsman with Power Sword Last Messages --------------- 27217_ Acquired Hvy. Armor Plating. 27218_ Dropped Com. Matter Pod. 27221_ Acquired Adv. Heat Sink. 27222_ Extracted 10 matter. 27230_ Acquired Med. Reflective Plating. 27232_ <>2AWG M QL 3XAWMO<3SJF:OKF#8 27235_ Acquired Med. Insulated Plating. 27241_ Dropped Lgt. Antimatter Reactor. 27242_ Acquired Particle Reactor. 27293_ RIF automatically installing new Swordsman 9a system data, ETC: 6. 27295_ HPFGKYVYWJZKCM#ETSV#MBJUMVSHO 27337_ Destroyed Lgt. Antimatter Reactor. 27339_ L-61 Swordsman heat spikes uncontrollably. 27339_ L-61 Swordsman overheating. 27342_ Quantum Rifle permanently disabled. 27342_ Overheating: Short circuit. 27342_ Dropped Broken Quantum Rifle. 27343_ L-61 Swordsman Flexi-carbon Leg severed. 27344_ Overheating: System interference. 27344_ Dual-blade Saw temporarily disabled. Map ----- +----------------------------------------------------+ | ?????????????????????????????????????????????????? | | ?????????????????????????????????????????????????? | | ?????????????????????????????????????????????????? | | ?????????????????????????????????????????????????? | | ?????????????????????????????????????????????????? | | ?????????????????????????????????????????????????? | | ?????????????????????????????????????????????????? | | ?????????????????????????????????????????????????? | | ?????????????????????????????????????????????????? | | ?????????????????????????????????????????????????? | | #####????????????????????????????????????????????? | | % #????????????????????????????????????????????? | | * ########### ?????????????????????????????????? | | ??????????????????????????????????? | | ????????????????????????????????????? | | =%[ ??????????????????????????????????????? | | ## #???????????????????????????????????????? | | ## ###?????????????????????????????????????? | | !! == #?????????????????????????????????????? | | !% !% * #?????????????????????????????????????? | | = [! ####??????????????????????????????????? | | = # #??????????????????????????????????? | | !%[## #### #??????????????????????????????????? | | [[[## #??# #??????????????????????????????????? | | %[[ #### #################??????????????????? | | !! ! " @l #??????????????????? | | *! % ###### ############# #??????????????????? | | ! ## #????# #???????????# #??????????????????? | | ## #????# #???????????! ??????????????????? | | ###### ^#????# #???????????! !?????????????????? | | ?????# #????# #??????????#! !#????????????????? | | ?????# ^#????# #??????????#! !#????????????????? | | ?????# #????###??????????## ##????????????????? | | ?????# ??????????????????# #?????????????????? | | ?????# #??????????????????# #?????????????????? | | ?????# #??????????????????? #?????????????????? | | ?????# #??????????????????l %l?????????????????? | | ?????# ????????????????????+++?????????????????? | | ?????# ??????????g????????? ?????????????????? | | ?????# ???????????????????? ?????????????????? | | ?????? ???????g???????????? ?????????????????? | | ?????????????????????????????###?????????Y???????? | | ?????????????????????????????????????????????????? | | ?????????????????????????????????????????????????? | | ?????????????????????????????????????????????????? | | ?????????????????????????????????????????????????? | | ?????????????????????????????????????????????????? | | ?????????????????????????????????????????????????? | | ?????????????????????????????????????????????????? | | ?????????????????????????????????????????????????? | +----------------------------------------------------+ Best States ------------- Heat Dissipation 144 Energy Generation 25 Energy Capacity 690 Matter Stores 550 Matter Capacity 550 Sight Range 16 Terrain Scan Range 16 Terrain Scan Density 10 Armor Coverage 1200 Resistance: KI 20 Resistance: TH 50 Resistance: EX 20 Resistance: EM 45 Resistance: I 20 Resistance: S 20 Resistance: P 20 Phase Shifting 10 Evasion (%) 65 Targeting Accuracy 8 Target Analysis 8 Armor Integrity Analysis 40 Recoil Reduction 6 Offensive Hacking 24 Defensive Hacking 10 Relay Coupler Types 9 Relay Coupler Value 220 Item Schematics ----------------- None Robot Schematics ------------------ None Fabricated ------------ Nothing Alien Tech Used ----------------- None Achievements -------------- Armchair Analyst Assimilation Complete Error 47 Infiltrator No Signal Pwned Challenges ------------ None Game ------ Seed MetafieldTitaniumPod Manual? 0 Play Time 04:38:55 Cumulative 60.3 hours Start 2021.11.13 @ 15:35:52 End 2021.11.14 @ 13:36:16 Sessions 5 Manual Loads 0 Difficulty Adventurer Special Mode None Game No. 32 Rogue 7 Adventurer 25 Explorer 0 Win Type - Total 1 Types 1/0/0/0/0/0/0/0/0 Lore% 32 Gallery% 45 Achievement% 39 Wizard Run 0 Options --------- ASCII 0 Keyboard 0 Movement Mouse Keybinds 0 Fullscreen 1 Font 24/Smallcaps Map View 76x50 Tactical HUD 1 Map Filters NONE Filters NONE Steam 1 RUN: 45482eb6-43ce-400d-a271-a2346b291e6f